bitfinex-derivatives/quotes_SOLF0:USTF0_20251129
["timestamp","ask_amount","ask_price","bid_price","bid_amount"]
[1764445825630,9.95341323,135.64,135.63,3.23]
[1764445826030,9.95341323,135.64,135.62,5.47347327]
[1764445831025,3.27,135.63,135.62,3.28334772]
[1764445832033,3.27,135.63,135.62,0.05334772]
[1764445845939,3.27,135.61,135.58,21.87281677]
[1764445846252,3.27,135.61,135.57,3.23]
[1764445847255,3.32001641,135.6,135.58,0.05345694]
[1764445847456,9.95581641,135.6,135.58,3.28345694]
[1764445849263,3.24,135.59,135.58,0.05345694]
[1764445856368,9.8759,135.59,135.58,0.05345694]
[1764445856569,12.06602555,135.59,135.58,0.05345694]
[1764445856868,17.5259981,135.59,135.58,0.05345694]
[1764445857073,12.06602555,135.59,135.58,0.05345694]
[1764445859972,9.8759,135.59,135.58,0.05345694]
[1764445860774,9.8759,135.59,135.58,3.39345694]
[1764445861967,0.05001641,135.6,135.58,3.39345694]
[1764445862173,0.05001641,135.6,135.59,5.53012555]
[1764445862574,0.05001641,135.6,135.59,3.34]
[1764445864778,0.05001641,135.6,135.59,6.76407991]
[1764445865977,3.29001641,135.6,135.58,0.05345694]
[1764445866570,9.92581641,135.6,135.58,0.05345694]
[1764445867182,9.92581641,135.6,135.58,3.39345694]
[1764445867375,6.68581641,135.6,135.58,3.39345694]
[1764445870184,5.43062457,135.65,135.58,3.39345694]
[1764445870385,5.43062457,135.64,135.58,3.34]
[1764445870587,25.16,135.66,135.58,3.34]
[1764445870778,5.42310865,135.65,135.58,3.34]
[1764445870978,5.42310865,135.64,135.58,3.34]
[1764445871278,0.04806278,135.62,135.6,3.38717528]
[1764445871485,0.05503803,135.62,135.6,3.38717528]
[1764445872282,2.81503803,135.62,135.6,3.38717528]
[1764445886001,0.05503803,135.62,135.6,3.38717528]
[1764445889407,9.44973803,135.62,135.6,3.38717528]
[1764445914624,0.05503803,135.62,135.6,3.38717528]
[1764445914927,0.05503803,135.62,135.61,3.27]
[1764445924527,0.05503803,135.62,135.61,5.46085653]
[1764445925131,2.81503803,135.62,135.6,3.31717528]
[1764445927129,0.05503803,135.62,135.6,3.31717528]
[1764445931140,0.05503803,135.62,135.61,5.46085653]
[1764445931433,8.17229322,135.65,135.62,3.27]
[1764445931634,2.76,135.64,135.62,3.27]
[1764445932429,2.81528166,135.64,135.62,3.27]
[1764445933435,2.81528166,135.64,135.6,3.31717528]
[1764445933634,2.76,135.62,135.6,0.04717528]
[1764445935940,2.24613819,135.64,135.6,0.04717528]
[1764445935941,8.17028216,135.61,135.6,0.04717528]
[1764445936335,2.76,135.61,135.6,0.04717528]
[1764445937239,8.16290965,135.61,135.6,0.04717528]
[1764445939336,2.76,135.61,135.6,0.04717528]
[1764445943641,9.3849,135.62,135.6,3.30717528]
[1764445946835,9.3849,135.62,135.6,5.49803181]
[1764445947038,6.6349,135.62,135.61,3.29]
[1764445947940,9.44878166,135.64,135.61,3.29]
[1764445948142,9.44878166,135.64,135.63,3.29]
[1764445948337,14.84640895,135.64,135.63,3.29]
[1764445948545,9.44878166,135.64,135.62,5.48085653]
[1764445950043,2.81528166,135.64,135.62,5.48085653]
[1764445950351,0.05528166,135.64,135.63,3.29]
[1764445952841,2.76,135.68,135.63,3.29]
[1764445953035,2.76,135.68,135.66,3.29]
[1764445953236,5.72827942,135.7,135.66,3.29]
[1764445953447,5.39275833,135.69,135.66,3.29]
[1764445953656,5.72827942,135.7,135.66,3.29]
[1764445953837,5.44189361,135.69,135.67,0.0511792]
[1764445954143,0.04843347,135.69,135.67,0.0511792]
[1764445954536,0.04843347,135.69,135.68,3.29]
[1764445954742,5.44136495,135.69,135.68,3.29]
[1764445955043,5.44136605,135.69,135.68,3.29]
[1764445955249,0.04843347,135.69,135.68,3.29]
[1764445956245,0.04843347,135.69,135.67,5.53203573]
[1764445956445,0.04843347,135.69,135.67,2.24203573]
[1764445958140,0.04843347,135.69,135.67,5.53203573]
[1764445963445,0.04843347,135.69,135.67,3.3411792]
[1764445964953,0.04843347,135.69,135.67,0.0511792]
[1764445967254,0.04843347,135.69,135.67,3.3411792]
[1764445970157,0.04843347,135.69,135.64,3.1]
[1764445970360,7.57849209,135.7,135.64,3.1]
[1764445970659,6.6329,135.66,135.64,3.1]
[1764445971159,6.68513654,135.66,135.64,3.15220335]
[1764445978264,0.05223654,135.66,135.64,3.15220335]
[1764445984071,0.05223654,135.66,135.65,5.29085653]
[1764445986577,0.05223654,135.66,135.65,3.1]
[1764445988171,6.6312,135.69,135.65,3.1]
[1764445989174,0.05215845,135.68,135.65,3.1]
[1764445991168,0.05215845,135.68,135.65,6.52124496]
[1764445991373,0.05215845,135.68,135.66,3.1]
[1764445994177,6.6303,135.71,135.66,3.1]
[1764445994178,6.7403,135.71,135.66,3.1]
[1764445995077,6.7403,135.71,135.68,3.1]
[1764445995078,0.04989573,135.7,135.68,3.1]
[1764445997869,0.15989573,135.7,135.68,3.1]
[1764445998680,0.04989573,135.7,135.68,3.1]
[1764446006984,0.11,135.69,135.67,0.050045]
[1764446008473,0.11,135.68,135.67,0.050045]
[1764446009386,5.51209004,135.68,135.67,3.100045]
[1764446009689,0.11,135.68,135.67,3.100045]
[1764446011182,6.7415,135.69,135.67,3.100045]
[1764446016585,6.6315,135.69,135.67,3.100045]
[1764446016793,0.04989573,135.7,135.67,3.100045]
[1764446028594,0.04989573,135.7,135.69,3.05]
[1764446029793,6.7787,135.74,135.69,3.05]
[1764446030183,0.15,135.74,135.69,3.05]
[1764446030390,27.89626,135.76,135.71,3.13]
[1764446030789,0.05148053,135.75,135.73,3.13]
[1764446037491,0.15,135.74,135.72,3.18471889]
[1764446037691,0.20148053,135.75,135.72,3.18471889]
[1764446037894,0.05148053,135.75,135.72,3.18471889]
[1764446048509,0.05148053,135.75,135.72,5.37178067]
[1764446048905,0.05148053,135.75,135.73,3.13]
[1764446051911,0.00148053,135.75,135.74,2.18706178]
[1764446052115,0.00148053,135.75,135.74,5.31706178]
[1764446054112,21.11826,135.76,135.75,3.62851947]
[1764446054319,21.11826,135.76,135.75,3.13]
[1764446056709,21.31826,135.76,135.74,3.13]
[1764446060708,0.2,135.75,135.74,3.13]
[1764446060914,0.2,135.75,135.73,3.07]
[1764446061219,21.11826,135.76,135.73,3.07]
[1764446061420,21.31826,135.76,135.73,3.07]
[1764446073826,0.2,135.75,135.73,3.07]
[1764446077625,0.2,135.75,135.72,2.24178067]
[1764446077626,0.2,135.75,135.72,0.05471889]
[1764446077838,0.2,135.73,135.72,0.05471889]
[1764446078230,0.2,135.73,135.72,3.22471889]
[1764446078831,0.04819058,135.74,135.73,3.17]
[1764446095541,0.2,135.77,135.73,3.17]
[1764446095542,0.2,135.77,135.75,0.45180942]
[1764446095840,0.2,135.77,135.73,3.17]
[1764446096542,0.04908098,135.76,135.73,3.17]
[1764446097141,0.04908098,135.76,135.75,3.31]
[1764446098342,5.50102638,135.76,135.75,3.31]
[1764446100035,5.69102638,135.76,135.75,3.31]
[1764446101842,0.19,135.74,135.73,3.31]
[1764446102044,0.19,135.74,135.72,3.36471889]
[1764446103249,0.19,135.74,135.72,5.55178067]
[1764446104243,0.19,135.74,135.72,0.05471889]
[1764446105047,0.19,135.74,135.72,3.36471889]
[1764446106043,5.45350798,135.73,135.72,3.36471889]
[1764446106244,0.19,135.74,135.72,3.36471889]
[1764446113452,6.8182,135.75,135.72,3.36471889]
[1764446113654,0.23908098,135.76,135.73,3.31]
[1764446113860,5.43307097,135.75,135.73,3.31]
[1764446114051,0.23908098,135.76,135.73,3.31]
[1764446114258,5.4329006,135.75,135.73,3.31]
[1764446114559,0.23908098,135.76,135.73,3.31]
[1764446114750,5.43281777,135.75,135.73,3.31]
[1764446115062,0.23908098,135.76,135.73,3.31]
[1764446115258,5.43283181,135.75,135.73,3.31]
[1764446115458,0.23908098,135.76,135.73,3.31]
[1764446115650,5.43292932,135.75,135.73,3.31]
[1764446115851,0.23908098,135.76,135.73,3.31]
[1764446116147,5.43275679,135.75,135.73,3.31]
[1764446116350,0.23908098,135.76,135.73,3.31]
[1764446116551,5.43271719,135.75,135.73,3.31]
[1764446116751,0.23908098,135.76,135.73,3.31]
[1764446116952,5.43271719,135.75,135.73,3.31]
[1764446117152,6.86688098,135.76,135.73,3.31]
[1764446117353,5.43269877,135.75,135.73,3.31]
[1764446117563,6.86688098,135.76,135.73,3.31]
[1764446117752,5.43269877,135.75,135.73,3.31]
[1764446117952,6.86688098,135.76,135.73,3.31]
[1764446118160,5.43269693,135.75,135.73,3.31]
[1764446118462,6.86688098,135.76,135.73,3.31]
[1764446118659,5.43269801,135.75,135.73,3.31]
[1764446118958,6.86688098,135.76,135.73,3.31]
[1764446119158,5.43269801,135.75,135.73,3.31]
[1764446119359,6.86688098,135.76,135.73,3.31]
[1764446119553,5.43272184,135.75,135.73,3.31]
[1764446119750,6.86688098,135.76,135.73,3.31]
[1764446119953,5.43272181,135.75,135.73,3.31]
[1764446120157,6.86688098,135.76,135.73,3.31]
[1764446120356,5.43278099,135.75,135.73,3.31]
[1764446120556,6.86688098,135.76,135.73,3.31]
[1764446120764,5.43278099,135.75,135.73,3.31]
[1764446120966,6.86688098,135.76,135.73,3.31]
[1764446121667,0.2,135.75,135.73,3.31]
[1764446128863,6.8284,135.75,135.73,3.31]
[1764446134375,5.43653091,135.74,135.73,3.31]
[1764446135384,6.8284,135.75,135.73,3.31]
[1764446144090,5.44244767,135.74,135.73,3.31]
[1764446146890,0.04908098,135.76,135.73,3.31]
[1764446147091,0.04908098,135.76,135.75,3.07]
[1764446147289,5.49443764,135.76,135.75,3.07]
[1764446149086,0.04908098,135.76,135.75,3.07]
[1764446162603,0.2,135.75,135.73,3.28]
[1764446162804,0.04908098,135.76,135.73,3.28]
[1764446163117,0.24908098,135.76,135.73,3.28]
[1764446164609,0.04908098,135.76,135.73,3.28]
[1764446164806,0.04908098,135.76,135.73,6.69830806]
[1764446165009,0.04908098,135.76,135.74,3.28]
[1764446165209,6.6271,135.78,135.76,3.28]
[1764446166210,6.67492725,135.78,135.76,3.33345656]
[1764446169208,6.92492725,135.78,135.76,3.33345656]
[1764446170321,0.25,135.77,135.76,3.33345656]
[1764446170627,5.67731901,135.77,135.76,0.05345656]
[1764446173721,0.25,135.77,135.76,0.05345656]
[1764446180421,5.67677009,135.77,135.76,0.05345656]
[1764446180613,0.25,135.77,135.76,0.05345656]
[1764446185129,5.67888951,135.77,135.76,0.05345656]
[1764446185728,5.67888951,135.77,135.76,3.06345656]
[1764446185928,5.67888951,135.77,135.76,0.05345656]
[1764446187838,5.42888951,135.77,135.76,3.06345656]
[1764446188033,6.92492725,135.78,135.76,3.06345656]
[1764446190334,0.04782725,135.78,135.76,3.06345656]
[1764446225846,0.04782725,135.78,135.76,9.69105656]
[1764446226150,0.04782725,135.78,135.77,3.24]
[1764446232269,15.08368,135.81,135.78,3.24]
[1764446233373,15.13500383,135.81,135.78,3.24]
[1764446234673,15.13500383,135.81,135.79,3.24]
[1764446237165,15.13500383,135.81,135.8,3.24]
[1764446240078,0.25,135.8,135.79,0.04832919]
[1764446249187,5.50937412,135.8,135.79,0.04832919]
[1764446249487,0.25,135.8,135.79,0.04832919]
[1764446249991,0.24,135.78,135.75,3.32]
[1764446250488,0.24,135.77,135.75,3.32]
[1764446250697,0.24,135.77,135.73,3.32]
[1764446250986,0.24,135.77,135.7,17.01182196]
[1764446250987,0.29535518,135.76,135.74,3.37445085]
[1764446251193,0.29531362,135.76,135.74,3.37445085]
[1764446251485,0.29531362,135.76,135.74,0.05445085]
[1764446252586,0.24,135.75,135.74,0.05445085]
[1764446260198,8.51515842,135.8,135.74,6.78937636]
[1764446260390,3.27,135.79,135.75,3.32]
[1764446261202,3.27,135.77,135.75,3.32]
[1764446261498,3.27,135.76,135.74,3.37445085]
[1764446261692,3.27,135.76,135.74,0.05445085]
[1764446263400,9.8979,135.76,135.74,0.05445085]
[1764446263698,3.27,135.75,135.74,0.05445085]
[1764446267104,3.27,135.75,135.74,3.37445085]
[1764446267300,6.6279,135.76,135.74,3.37445085]
[1764446267803,9.8979,135.76,135.74,3.37445085]
[1764446268001,3.27,135.75,135.74,3.37445085]
[1764446270404,3.27,135.75,135.74,0.05445085]
[1764446272302,3.04,135.73,135.71,13.53149957]
[1764446272499,3.04,135.73,135.7,10.11657406]
[1764446273295,3.04,135.73,135.7,10.17048023]
[1764446273502,3.09149189,135.73,135.7,10.17048023]
[1764446274300,9.72079189,135.73,135.7,10.17048023]
[1764446274604,3.04,135.72,135.7,10.17048023]
[1764446275098,3.04,135.71,135.7,6.92048023]
[1764446275299,3.04,135.71,135.7,0.05390617]
[1764446286918,3.04,135.71,135.66,6.86657406]
[1764446286919,3.04,135.69,135.66,10.11657406]
[1764446287115,3.04,135.69,135.66,3.25]
[1764446287516,3.04,135.68,135.66,3.25]
[1764446287907,3.09534309,135.68,135.66,3.3033624]
[1764446291814,3.04,135.67,135.66,3.3033624]
[1764446293317,3.04,135.67,135.66,0.0533624]
[1764446295117,3.04,135.67,135.66,2.24314268]
[1764446297714,3.04,135.67,135.66,0.0533624]
[1764446297918,9.6726,135.66,135.64,5.43978028]
[1764446298911,9.6726,135.66,135.64,5.4923155]
[1764446302818,3.31,135.65,135.64,5.4923155]
[1764446303320,3.31,135.65,135.64,0.05253522]
[1764446303618,3.31,135.65,135.64,3.08253522]
[1764446311025,3.31,135.65,135.64,0.05253522]
[1764446324933,3.31,135.65,135.64,5.2723155]
[1764446326732,6.6326,135.66,135.65,3.03]
[1764446327346,9.9426,135.66,135.65,3.03]
[1764446328033,3.31,135.65,135.64,2.2423155]
[1764446328534,9.9426,135.66,135.64,5.2723155]
[1764446330233,3.31,135.66,135.64,5.2723155]
[1764446331742,3.31,135.66,135.64,12.13888956]
[1764446332142,3.31,135.66,135.65,3.3]
[1764446333842,3.31,135.66,135.65,5.48978028]
[1764446337245,9.7224,135.67,135.66,3.3]
[1764446337449,3.14534309,135.68,135.66,3.3]
[1764446339047,3.09,135.67,135.66,3.3]
[1764446340650,3.09,135.67,135.66,10.16657406]
[1764446340850,3.09,135.67,135.66,3.3]
[1764446341453,3.09,135.67,135.65,6.86657406]
[1764446341952,3.09,135.67,135.65,10.16657406]
[1764446342153,9.77704309,135.68,135.66,5.48978028]
[1764446343050,3.09,135.67,135.66,5.48978028]
[1764446346059,3.09,135.67,135.66,2.18978028]
[1764446346258,3.09,135.67,135.65,6.86657406]
[1764446347357,3.09,135.67,135.64,9.10888956]
[1764446347556,3.09,135.67,135.64,12.40888956]
[1764446348453,3.09,135.67,135.65,3.3]
[1764446352258,0.05534309,135.68,135.65,3.3]
[1764446352560,3.14534309,135.68,135.66,3.3]
[1764446376482,0.05534309,135.68,135.66,3.3]
[1764446377084,3.07534309,135.68,135.66,3.3]
[1764446381587,3.07534309,135.68,135.66,10.16657406]
[1764446384892,0.05534309,135.68,135.67,3.03]
[1764446399006,3.35534309,135.68,135.66,6.86657406]
[1764446399206,3.35534309,135.68,135.66,3.03]
[1764446400410,0.05534309,135.68,135.66,9.89657406]
[1764446400706,3.35534309,135.68,135.67,3.03]
[1764446401208,3.35534309,135.68,135.66,9.89657406]
[1764446401610,0.05534309,135.68,135.66,3.03]
[1764446401809,0.05534309,135.68,135.66,9.89657406]
[1764446402107,3.35534309,135.68,135.67,3.03]
[1764446405013,8.50280588,135.68,135.67,3.03]
[1764446405210,3.3,135.67,135.65,9.89657406]
[1764446406306,3.3,135.67,135.65,6.86657406]
[1764446406508,3.3,135.67,135.64,9.94910928]
[1764446407511,3.3,135.66,135.64,0.05253522]
[1764446407716,3.3,135.66,135.64,3.08253522]
[1764446415018,3.3,135.65,135.64,0.05253522]
[1764446420433,6.6335,135.64,135.62,6.86657406]
[1764446420735,3.06,135.63,135.61,6.86657406]
[1764446421122,3.06,135.63,135.6,3.25]
[1764446421526,3.10787354,135.63,135.6,3.30620779]
[1764446422134,9.6945,135.62,135.6,3.30620779]
[1764446425537,3.06,135.61,135.6,3.30620779]
[1764446426229,6.6345,135.62,135.6,3.30620779]
[1764446426533,9.6945,135.62,135.6,3.30620779]
[1764446431532,6.6345,135.62,135.6,3.30620779]
[1764446431736,6.6345,135.62,135.61,3.25]
[1764446432937,9.6945,135.62,135.6,0.05620779]
[1764446433144,3.06,135.61,135.6,2.24687866]
[1764446434146,3.06,135.61,135.6,0.05620779]
[1764446434351,0.04787354,135.63,135.55,11.35263781]
[1764446434352,3.06,135.57,135.55,11.35263781]
[1764446434643,3.06,135.57,135.52,3.25]
[1764446434847,3.06,135.57,135.53,3.25]
[1764446435352,3.06,135.55,135.54,0.04884365]
[1764446435648,0.05220639,135.56,135.55,3.25]
[1764446436552,3.11220639,135.56,135.54,2.23951452]
[1764446436845,0.05220639,135.56,135.55,3.25]
[1764446437049,3.06,135.59,135.55,3.25]
[1764446437246,3.06,135.59,135.58,3.25]
[1764446437450,3.06,135.59,135.58,5.44067087]
[1764446438046,0.053062,135.6,135.59,3.25]
[1764446439457,3.113062,135.6,135.58,5.44067087]
[1764446440856,0.053062,135.6,135.59,3.25]
[1764446460365,6.6359,135.59,135.57,0.05115207]
[1764446461457,3.03,135.58,135.57,0.05115207]
[1764446462374,3.03,135.58,135.57,3.39115207]
[1764446466469,6.6359,135.59,135.57,3.39115207]
[1764446467672,0.053062,135.6,135.59,3.34]
[1764446468368,18.0953,135.66,135.6,3.34]
[1764446468573,5.49267597,135.65,135.62,3.34]
[1764446468776,18.0953,135.66,135.62,3.34]
[1764446469264,18.0953,135.66,135.63,0.05285319]
[1764446469464,6.68114489,135.65,135.63,3.39285319]
[1764446473571,5.22067087,135.64,135.63,0.05285319]
[1764446473772,9.6641,135.63,135.6,3.34]
[1764446474866,6.6348,135.62,135.6,3.39454847]
[1764446477770,6.6337,135.64,135.6,3.39454847]
[1764446478565,0.04794489,135.65,135.6,3.39454847]
[1764446481673,0.04794489,135.65,135.6,12.55651541]
[1764446481877,0.04794489,135.65,135.61,3.28]
[1764446484378,0.04794489,135.65,135.61,22.50086417]
[1764446484574,0.04794489,135.65,135.62,3.25]
[1764446484788,14.79504637,135.66,135.62,3.25]
[1764446485874,0.0543512,135.65,135.62,9.8843]
[1764446486075,0.0543512,135.65,135.63,3.25]
[1764446486470,9.89968136,135.66,135.63,3.25]
[1764446487579,9.95577905,135.66,135.63,3.30017185]
[1764446490985,9.95577905,135.66,135.64,3.25]
[1764446492389,9.95577905,135.66,135.65,3.25]
[1764446493595,3.2,135.71,135.67,1.1]
[1764446494390,3.2,135.74,135.69,1.1]
[1764446494601,0.05627415,135.73,135.71,1.1]
[1764446497999,3.25627415,135.73,135.7,0.05489268]
[1764446498599,3.2,135.72,135.7,0.05489268]
[1764446499196,3.2,135.71,135.63,1.1]
[1764446499400,3.2,135.69,135.63,1.1]
[1764446500103,0.0483244,135.67,135.65,0.0467003]
[1764446500307,3.2,135.66,135.65,0.0467003]
[1764446501302,3.2483244,135.67,135.65,0.0467003]
[1764446508606,3.2,135.66,135.65,0.0467003]
[1764446508806,3.2,135.66,135.6,7.7352]
[1764446509215,3.2,135.66,135.58,1.14]
[1764446509216,3.17,135.65,135.58,1.14]
[1764446509811,3.17,135.62,135.6,0.05415524]
[1764446511814,3.17,135.62,135.6,1.19415524]
[1764446520015,0.0538295,135.63,135.6,4.61845247]
[1764446520223,0.0538295,135.63,135.61,1.14]
[1764446523117,3.2238295,135.63,135.6,0.05415524]
[1764446523318,3.2238295,135.63,135.6,1.19415524]
[1764446524525,0.0538295,135.63,135.6,1.19415524]
[1764446526818,3.2238295,135.63,135.6,1.19415524]
[1764446533621,3.2238295,135.63,135.6,0.05415524]
[1764446533821,3.17,135.61,135.6,0.05415524]
[1764446537330,0.0538295,135.63,135.6,1.19415524]
[1764446537524,0.0538295,135.63,135.61,1.14]
[1764446537733,0.0538295,135.63,135.62,4.56429723]
[1764446538638,0.0538295,135.63,135.62,3.32990516]
[1764446539534,9.7823,135.67,135.63,1.13]
[1764446539735,9.7823,135.67,135.65,2.18990516]
[1764446540538,9.82896831,135.67,135.65,2.24180548]
[1764446540939,3.15,135.66,135.65,0.05190032]
[1764446547042,6.67896831,135.67,135.65,1.19190032]
[1764446547043,0.04666831,135.67,135.65,1.19190032]
[1764446547347,0.04666831,135.67,135.66,2.18990516]
[1764446548142,3.11666831,135.67,135.66,2.18990516]
[1764446549048,3.11666831,135.67,135.65,0.05190032]
[1764446552348,3.07,135.66,135.65,0.05190032]
[1764446552545,3.07,135.66,135.6,9.16196694]
[1764446552849,3.07,135.64,135.58,12.5418721]
[1764446553034,3.07,135.64,135.58,3.37990516]
[1764446553641,3.12169184,135.62,135.6,0.05429876]
[1764446563957,3.12169184,135.62,135.6,3.43420392]
[1764446564357,0.05169184,135.62,135.61,1.19]
[1764446564550,0.05169184,135.62,135.6,3.43420392]
[1764446565256,3.12169184,135.62,135.6,3.43420392]
[1764446577674,3.12169184,135.62,135.6,1.24429876]
[1764446577877,3.12169184,135.62,135.6,3.43420392]
[1764446579372,0.05169184,135.62,135.61,1.2]
[1764446580073,3.33169184,135.62,135.61,1.2]
[1764446581276,3.33169184,135.62,135.6,2.24420392]
[1764446581478,3.33169184,135.62,135.6,1.25429876]
[1764446581679,3.33169184,135.62,135.6,3.44420392]
[1764446581873,0.05169184,135.62,135.61,1.2]
[1764446584075,3.33169184,135.62,135.6,2.24420392]
[1764446584270,2.18990516,135.61,135.57,22.76938003]
[1764446584472,3.28,135.6,135.56,3.06]
[1764446584883,3.28,135.63,135.58,3.06]
[1764446585180,3.28,135.61,135.59,3.06]
[1764446585381,3.33076006,135.61,135.59,3.10906928]
[1764446585586,0.05076006,135.61,135.6,5.24990516]
[1764446585874,0.05076006,135.61,135.59,0.04906928]
[1764446586079,0.05076006,135.61,135.6,5.24990516]
[1764446587678,3.28,135.63,135.61,0.44923994]
[1764446587878,3.28,135.63,135.55,13.59689645]
[1764446588083,2.18990516,135.67,135.54,11.88800516]
[1764446588084,3.26,135.6,135.54,11.88800516]
[1764446588386,3.26,135.6,135.56,5.24990516]
[1764446588973,3.30722494,135.59,135.57,0.05330797]
[1764446590889,9.53306725,135.58,135.57,0.05330797]
[1764446594488,3.2,135.56,135.51,5.24990516]
[1764446594682,3.2,135.54,135.51,5.24990516]
[1764446595080,3.2,135.54,135.52,3.06]
[1764446595491,0.05432262,135.54,135.53,5.24990516]
[1764446595691,6.32646174,135.54,135.53,5.24990516]
[1764446596185,6.32646174,135.54,135.53,3.06]
[1764446596386,6.32646174,135.54,135.53,5.24990516]
[1764446596790,0.05432262,135.54,135.53,5.24990516]
[1764446597190,0.05432262,135.54,135.52,3.11531052]
[1764446597491,0.05432262,135.54,135.53,5.24990516]
[1764446598699,0.05432262,135.54,135.53,6.48624918]
[1764446601810,3.24432262,135.54,135.52,0.05531052]
[1764446602310,3.24432262,135.54,135.52,3.12531052]
[1764446602511,0.05432262,135.54,135.52,3.12531052]
[1764446603019,5.44959921,135.59,135.54,3.07]
[1764446603310,3.19,135.6,135.56,3.07]
[1764446603809,3.19,135.59,135.56,3.07]
[1764446604001,3.24517851,135.59,135.56,3.12015892]
[1764446604206,0.05517851,135.59,135.58,3.07]
[1764446607011,3.19,135.63,135.58,3.07]
[1764446607307,3.19,135.63,135.59,6.49624918]
[1764446608012,3.23914473,135.62,135.6,0.04848915]
[1764446608312,3.23822464,135.62,135.6,0.04848915]
[1764446625323,3.19,135.61,135.57,3.07]
[1764446626319,3.19,135.61,135.58,0.05050349]
[1764446626625,3.19,135.61,135.58,3.12050349]
[1764446628014,9.87292464,135.62,135.58,3.12050349]
[1764446628216,3.19,135.61,135.58,3.12050349]
[1764446628818,0.04822464,135.62,135.59,3.07]
[1764446631415,3.09822464,135.62,135.59,3.07]
[1764446632522,3.09822464,135.62,135.58,6.53675267]
[1764446632827,3.09822464,135.62,135.58,0.05050349]
[1764446633615,3.05,135.6,135.58,0.05050349]
[1764446634417,3.05,135.59,135.54,3.06]
[1764446634623,3.05,135.59,135.52,9.6991]
[1764446635323,3.05,135.58,135.52,9.6991]
[1764446635625,3.09761546,135.56,135.54,3.10780214]
[1764446637119,3.09761546,135.56,135.54,0.04780214]
[1764446642443,0.04761546,135.56,135.54,3.10780214]
[1764446646042,3.09761546,135.56,135.54,3.10780214]
[1764446648238,3.09761546,135.56,135.54,0.04780214]
[1764446652349,3.05,135.55,135.54,0.04780214]
[1764446665551,3.05,135.55,135.54,2.24149891]
[1764446665754,3.19761546,135.56,135.54,5.28149891]
[1764446666758,3.19761546,135.56,135.55,2.19369677]
[1764446671058,3.15,135.55,135.52,3.04]
[1764446671362,3.15,135.55,135.53,2.19369677]
[1764446672057,3.15,135.55,135.53,2.242394]
[1764446672362,3.15,135.54,135.53,2.242394]
[1764446673561,3.15,135.54,135.53,0.04869723]
[1764446673759,3.15,135.54,135.53,2.242394]
[1764446676057,3.15,135.54,135.53,0.04869723]
[1764446676259,3.15,135.54,135.53,2.242394]
[1764446677159,3.15,135.54,135.53,0.04869723]
[1764446677461,3.15,135.54,135.53,2.242394]
[1764446678660,3.15,135.54,135.53,0.04869723]
[1764446678856,3.15,135.54,135.51,2.19369677]
[1764446678857,8.35839831,135.54,135.51,2.19369677]
[1764446679058,3.15,135.53,135.51,2.19369677]
[1764446679767,3.15,135.53,135.51,2.24248355]
[1764446680569,3.15,135.52,135.51,2.24248355]
[1764446683163,3.15,135.52,135.51,0.04878678]
[1764446684668,3.15,135.51,135.48,5.23369677]
[1764446685567,3.15,135.51,135.48,2.19369677]
[1764446685767,3.19915251,135.51,135.48,2.24484298]
[1764446686067,3.15,135.5,135.48,2.24484298]
[1764446688165,3.15,135.5,135.48,5.28484298]
[1764446688465,6.68945251,135.51,135.49,3.04]
[1764446688769,6.68945251,135.51,135.5,2.19369677]
[1764446688964,9.83945251,135.51,135.5,2.19369677]
[1764446689168,3.2,135.5,135.48,2.24484298]
[1764446690861,3.2,135.5,135.48,5.50484298]
[1764446691771,0.04915251,135.51,135.49,3.26]
[1764446692076,3.24915251,135.51,135.49,3.26]
[1764446692263,3.24915251,135.51,135.49,2.19369677]
[1764446694371,3.2,135.5,135.48,0.05114621]
[1764446698976,3.2,135.49,135.48,0.05114621]
[1764446700274,3.2,135.47,135.45,2.19369677]